bitfinex-derivatives/quotes_SOLF0:USTF0_20241230
["timestamp","ask_amount","ask_price","bid_price","bid_amount"]
[1735549540994,12.83373388,193.5,193.44,4.03373294]
[1735549541195,12.83373388,193.5,193.45,4.03373294]
[1735549541395,12.83373388,193.5,193.42,2.5894]
[1735549541596,12.83373388,193.5,193.43,4.04139985]
[1735549541793,12.83373388,193.5,193.44,4.04139985]
[1735549541995,14.39253388,193.5,193.41,45.04842537]
[1735549542293,14.39253388,193.5,193.42,4.04156496]
[1735549542493,14.39253388,193.5,193.43,4.04156496]
[1735549542705,14.39253388,193.5,193.41,45.04842537]
[1735549542900,14.39253388,193.5,193.42,4.04443702]
[1735549543094,14.39253388,193.5,193.43,4.04443702]
[1735549543293,14.39253388,193.5,193.44,4.04443702]
[1735549543496,14.39253388,193.5,193.45,4.04443702]
[1735549543694,14.39253388,193.5,193.39,31.85962652]
[1735549543889,14.39253388,193.5,193.4,6.63578297]
[1735549544094,14.39253388,193.5,193.41,4.04598297]
[1735549544294,8.2274569,193.46,193.42,4.04598297]
[1735549544497,8.2274569,193.46,193.43,4.04598297]
[1735549544801,1.5588,193.5,193.44,4.04598297]
[1735549544996,2.98,193.49,193.45,4.04598297]
[1735549545196,2.98,193.49,193.39,2.98]
[1735549545398,8.2274569,193.43,193.4,4.04808009]
[1735549545594,8.2274569,193.43,193.41,4.04808009]
[1735549545800,8.2274569,193.43,193.38,9.80990663]
[1735549546000,8.2274569,193.43,193.39,4.04761783]
[1735549546188,8.2274569,193.43,193.41,2.5896]
[1735549546393,8.2274569,193.43,193.42,4.04761783]
[1735549547500,8.2274569,193.45,193.42,4.04761783]
[1735549547696,8.2274569,193.45,193.43,4.04761783]
[1735549547892,8.2274569,193.45,193.44,4.04761783]
[1735549548496,8.2274569,193.45,193.44,4.05140063]
[1735549549403,8.2274569,193.45,193.41,2.5896]
[1735549549596,8.2274569,193.45,193.42,4.05052219]
[1735549549895,8.2274569,193.45,193.43,4.05052219]
[1735549550095,8.2274569,193.45,193.44,4.05052219]
[1735549551995,8.2274569,193.45,193.44,4.05193827]
[1735549554898,8.2274569,193.45,193.35,33.33192652]
[1735549555197,8.2274569,193.4,193.35,33.33192652]
[1735549555499,8.2274569,193.38,193.35,28.87962652]
[1735549555709,8.2274569,193.36,193.35,28.87962652]
[1735549556002,8.2274569,193.36,193.33,9.58510251]
[1735549556203,8.2274569,193.34,193.33,2.30800251]
[1735549556399,8.2274569,193.34,193.28,74.62031505]
[1735549556400,11.1874569,193.34,193.28,21.59283506]
[1735549556599,8.2274569,193.29,193.28,21.59283506]
[1735549557605,8.2274569,193.29,193.25,86.63887958]
[1735549557606,8.2274569,193.29,193.24,1.4854]
[1735549557904,8.2274569,193.27,193.24,1.4854]
[1735549558306,12.880669,193.29,193.24,1.4854]
[1735549559000,12.880669,193.29,193.21,1.6098]
[1735549559896,12.880669,193.26,193.19,1.4556]
[1735549560093,12.880669,193.26,193.18,1.6048]
[1735549560307,12.880669,193.23,193.18,1.6048]
[1735549560699,12.880669,193.23,193.16,1.4663]
[1735549561507,12.880669,193.2,193.13,1.5589]
[1735549561702,4.5848,193.27,193.06,3.0252]
[1735549561703,12.880669,193.17,193.06,3.0252]
[1735549561911,12.880669,193.17,193.06,5.9852]
[1735549562106,12.880669,193.17,193.06,3.0252]
[1735549562412,12.880669,193.14,193.06,5.9852]
[1735549564102,12.880669,193.14,193.06,4.4263]
[1735549564904,15.840669,193.14,193.05,1.5608]
[1735549566310,15.840669,193.14,193.03,2.5947]
[1735549566806,12.880669,193.11,193.01,4.7295]
[1735549567007,12.880669,193.08,193.01,1.5658]
[1735549567210,12.880669,193.05,192.98,2.96]
[1735549567414,12.880669,193.05,192.96,5.5557]
[1735549568306,12.880669,193.05,192.96,2.96]
[1735549568910,12.880669,193.05,192.95,5.5558]
[1735549569108,12.880669,193.05,192.97,2.5955]
[1735549569309,12.880669,193.05,192.95,2.96]
[1735549570307,12.880669,193.08,192.96,12.880669]
[1735549571008,12.880669,193.11,192.99,12.880669]
[1735549571209,12.880669,193.11,193.0,7.5448]
[1735549572008,12.880669,193.11,193.02,2.5949]
[1735549572310,12.880669,193.11,193.0,7.5448]
[1735549572513,2.96,193.11,193.0,7.5448]
[1735549572711,12.880669,193.08,193.0,7.5448]
[1735549572914,12.880669,193.08,193.0,2.9771]
[1735549573115,12.880669,193.08,193.0,1.489]
[1735549573704,12.880669,193.05,192.93,12.880669]
[1735549573912,12.880669,193.05,192.95,2.5957]
[1735549574112,12.880669,193.05,192.94,4.5055]
[1735549575213,12.880669,193.05,192.97,2.5955]
[1735549575421,12.880669,193.05,192.94,4.5055]
[1735549575808,12.880669,193.05,192.98,2.5954]
[1735549576113,12.880669,193.05,192.94,4.5055]
[1735549576917,12.880669,193.08,192.96,12.880669]
[1735549577218,12.880669,193.08,192.97,0.9538779]
[1735549577420,12.880669,193.08,192.96,12.880669]
[1735549577618,12.880669,193.08,192.97,0.95377403]
[1735549577807,12.880669,193.08,193.02,2.5949]
[1735549581116,12.880669,193.08,193.03,2.5947]
[1735549581317,12.880669,193.11,193.0,1.5648]
[1735549581521,12.880669,193.11,193.01,1.6021]
[1735549581914,12.880669,193.11,193.02,1.5204]
[1735549582520,12.880669,193.11,193.04,2.5946]
[1735549582822,12.880669,193.11,193.02,1.5204]
[1735549583017,12.880669,193.11,193.06,2.5943]
[1735549583915,12.880669,193.11,193.02,1.5204]
[1735549584516,12.880669,193.11,193.06,2.5943]
[1735549585822,12.880669,193.11,193.02,1.5204]
[1735549586017,12.880669,193.11,193.0,4.5448]
[1735549587528,12.880669,193.11,193.02,2.5949]
[1735549589518,12.880669,193.08,192.93,12.880669]
[1735549589822,12.880669,193.08,192.94,3.93393265]
[1735549589823,12.880669,193.05,192.94,3.93393265]
[1735549590122,12.880669,193.05,192.94,2.98]
[1735549590518,12.880669,193.08,192.99,2.5952]
[1735549590721,12.880669,193.08,192.96,12.880669]
[1735549591422,12.880669,193.08,193.01,2.5949]
[1735549592025,12.880669,193.08,193.03,2.5947]
[1735549592226,4.5702,193.1,192.99,2.98]
[1735549592227,2.98,193.1,192.99,2.98]
[1735549593331,2.98,193.1,193.04,2.5946]
[1735549594224,12.880669,193.11,192.99,15.860669]
[1735549594419,12.880669,193.11,193.0,4.7088]
[1735549595328,12.880669,193.11,193.05,2.5944]
[1735549598136,12.880669,193.11,193.0,4.7088]
[1735549598334,8.25721949,193.11,193.04,8.25721949]
[1735549598528,8.25721949,193.09,193.04,11.23721949]
[1735549598733,8.25721949,193.09,193.04,2.98]
[1735549599429,8.25721949,193.09,193.02,8.25721949]
[1735549599633,8.25721949,193.07,193.02,2.98]
[1735549600237,8.25721949,193.07,193.0,12.96601949]
[1735549600731,8.25721949,193.07,193.04,2.5945]
[1735549601238,28.69276444,193.09,193.02,8.25721949]
[1735549601442,36.94998393,193.09,193.02,8.25721949]
[1735549601839,8.25721949,193.09,193.07,2.5941]
[1735549602843,8.25721949,193.09,193.05,2.5944]
[1735549603141,8.25721949,193.09,193.02,8.25721949]
[1735549603338,8.25721949,193.09,193.02,11.23721949]
[1735549604340,8.25721949,193.07,193.02,2.98]
[1735549604545,8.25721949,193.07,192.94,11.84483045]
[1735549604546,8.25721949,193.05,192.98,8.25721949]
[1735549604837,8.25721949,193.03,192.99,2.5952]
[1735549605435,8.25721949,193.03,192.99,2.5953]
[1735549606241,8.25721949,193.03,192.96,8.25721949]
[1735549607044,8.25721949,193.03,193.01,2.595]
[1735549608245,8.25721949,193.03,192.98,2.5954]
[1735549608645,8.25721949,193.03,192.96,8.25721949]
[1735549609447,8.25721949,193.03,192.97,2.5956]
[1735549610144,8.25721949,193.01,192.95,1.6125]
[1735549610348,8.25721949,193.01,192.96,2.5957]
[1735549611845,8.25721949,193.01,192.97,2.5955]
[1735549612241,8.25721949,193.01,192.95,1.6125]
[1735549612854,8.25721949,193.01,192.96,2.5956]
[1735549613152,8.25721949,193.01,192.95,1.6125]
[1735549613453,8.25721949,193.03,193.0,2.595]
[1735549616349,3.0407,193.06,193.0,2.595]
[1735549616555,8.25721949,193.03,193.01,2.595]
[1735549618755,8.25721949,193.05,192.98,8.25721949]
[1735549620053,8.25721949,193.05,193.02,2.5948]
[1735549620255,8.25721949,193.05,192.98,8.25721949]
[1735549620460,8.25721949,193.03,192.96,11.25721949]
[1735549620854,8.25721949,193.03,192.99,2.5952]
[1735549621557,8.25721949,193.03,193.0,2.5951]
[1735549622058,8.25721949,193.03,193.02,2.5949]
[1735549622269,8.25721949,193.03,192.96,11.25721949]
[1735549622862,8.25721949,193.03,193.0,2.5951]
[1735549624959,8.25721949,193.05,192.98,8.25721949]
[1735549625757,8.25721949,193.07,193.0,8.25721949]
[1735549626961,8.25721949,193.07,193.05,2.5944]
[1735549628258,8.25721949,193.09,193.02,8.25721949]
[1735549629560,8.25721949,193.09,193.07,2.5941]
[1735549633660,8.25721949,193.11,193.06,2.98]
[1735549633865,28.69276444,193.15,193.06,11.23721949]
[1735549633866,8.25721949,193.13,193.06,11.23721949]
[1735549634267,8.25721949,193.13,193.08,2.5941]
[1735549634459,8.25721949,193.13,193.06,11.23721949]
[1735549635663,8.25721949,193.13,193.11,2.5937]
[1735549638567,8.25721949,193.13,193.06,11.23721949]
[1735549638767,8.25721949,193.09,193.04,5.9568]
[1735549638970,8.25721949,193.09,193.03,1.5915]
[1735549639161,8.25721949,193.07,193.04,2.5946]
[1735549639361,2.98,193.13,192.99,2.98]
[1735549639362,8.25721949,193.05,192.99,2.98]
[1735549639683,8.25721949,193.03,192.97,2.98]
[1735549639866,8.25721949,193.03,192.99,2.5952]
[1735549641564,8.25721949,193.03,193.0,2.5951]
[1735549642271,8.25721949,193.03,192.96,11.23721949]
[1735549642470,8.25721949,193.03,192.99,2.5952]
[1735549643272,8.25721949,193.03,192.97,2.5955]
[1735549643470,1.5492,193.07,192.97,2.5955]
[1735549643471,8.25721949,193.01,192.97,2.5955]
[1735549644865,8.25721949,193.01,192.94,12.76341949]
[1735549645070,8.25721949,193.01,192.96,2.5957]
[1735549645568,8.25721949,193.01,192.94,9.80341949]
[1735549645765,8.25721949,193.01,192.94,12.76341949]
[1735549646268,8.25721949,193.01,192.94,9.80341949]
[1735549646469,8.25721949,193.01,192.97,2.5955]
[1735549646669,8.25721949,193.01,192.94,12.76341949]
[1735549646868,1.5689,193.06,192.9,1.5026]
[1735549646869,8.25721949,192.99,192.9,1.5026]
[1735549647169,8.25721949,192.99,192.91,11.21721949]
[1735549647763,8.25721949,192.99,192.94,2.5958]
[1735549647967,8.25721949,192.97,192.9,1.5026]
[1735549648376,8.25721949,192.97,192.93,2.5961]
[1735549649169,8.25721949,192.99,192.91,8.25721949]
[1735549649368,8.25721949,192.99,192.95,2.5957]
[1735549649772,8.25721949,192.99,192.91,8.25721949]
[1735549651767,8.25721949,192.99,192.96,2.5956]
[1735549653976,8.25721949,192.97,192.94,2.5958]
[1735549656577,8.25721949,192.97,192.9,2.96]
[1735549656974,8.25721949,192.95,192.92,2.5961]
[1735549659380,8.25721949,192.95,192.89,8.25721949]
[1735549659678,8.25721949,192.97,192.95,2.5958]
[1735549660082,8.25721949,192.97,192.94,2.596]
[1735549660283,8.25721949,192.97,192.89,8.25721949]
[1735549660584,8.25721949,192.97,192.94,2.5959]
[1735549662182,8.25721949,192.97,192.96,2.5957]
[1735549662980,8.25721949,192.97,192.92,2.5961]
[1735549663179,8.25721949,192.97,192.88,2.96]
[1735549663381,8.25721949,192.97,192.9,8.25721949]
[1735549663580,8.25721949,192.97,192.94,2.5958]
[1735549663784,8.25721949,192.97,192.9,8.25721949]
[1735549665872,1.6022,193.02,192.92,8.25721949]
[1735549666078,1.5689,193.06,192.92,8.25721949]
[1735549666079,2.96,193.04,192.93,2.96]
[1735549666280,8.25721949,193.0,192.93,2.96]
[1735549666579,8.25721949,193.0,192.97,2.5955]
[1735549666980,8.25721949,192.98,192.94,2.5959]
[1735549667179,8.25721949,192.98,192.92,8.25721949]
[1735549667381,8.25721949,192.98,192.92,11.21721949]
[1735549668487,8.25721949,192.98,192.95,2.5957]
[1735549668787,8.25721949,192.98,192.92,11.21721949]
[1735549669589,8.25721949,192.98,192.92,2.96]
[1735549670296,8.25721949,192.98,192.95,2.5958]
[1735549671290,8.25721949,192.98,192.92,2.96]
[1735549671992,8.25721949,192.98,192.94,2.5959]
[1735549672588,8.25721949,192.98,192.95,2.5958]
[1735549675590,8.25721949,192.98,192.92,2.96]
[1735549677090,8.25721949,192.98,192.93,2.596]
[1735549678996,28.69276444,193.0,192.93,2.596]
[1735549679190,8.25721949,192.98,192.93,2.596]
[1735549680290,8.25721949,192.98,192.92,2.96]
[1735549680591,8.25721949,192.98,192.95,2.5958]
[1735549681495,7.16391203,193.0,192.97,2.5956]
[1735549681683,7.16391203,193.0,192.92,11.21721949]
[1735549682087,7.16391203,193.0,192.99,2.5953]
[1735549683783,8.25721949,193.02,193.0,2.5951]
[1735549684388,8.25721949,193.02,192.98,2.5953]
[1735549684588,8.25721949,193.0,192.95,1.592]
[1735549684793,8.25721949,192.98,192.93,2.96]
[1735549685195,8.25721949,192.96,192.93,5.556]
[1735549685993,8.25721949,192.96,192.94,2.5959]
[1735549687220,8.25721949,192.96,192.93,5.5561]
[1735549687695,8.25721949,192.96,192.93,2.5961]
[1735549688396,8.25721949,192.96,192.91,2.5964]
[1735549688592,8.25721949,192.96,192.89,8.25721949]
[1735549688797,8.25721949,192.96,192.89,11.21721949]
[1735549689395,8.25721949,192.96,192.92,2.5962]
[1735549691696,8.25721949,192.96,192.89,2.96]
[1735549692192,8.25721949,192.96,192.9,8.25721949]
[1735549693498,8.25721949,192.96,192.94,2.596]
[1735549694199,8.25721949,192.98,192.95,2.5958]
[1735549694830,8.25721949,192.98,192.96,2.5957]
[1735549694997,28.69276444,193.01,192.94,8.25721949]
[1735549695296,28.69276444,193.01,192.96,8.25721949]
[1735549695602,28.69276444,193.01,193.0,2.5952]
[1735549695896,8.25721949,193.02,193.0,2.5952]
[1735549696497,8.25721949,193.02,192.95,3.0825]
[1735549696699,8.25721949,193.0,192.94,2.96]
[1735549697290,8.25721949,193.0,192.96,2.5957]
[1735549698292,8.25721949,192.98,192.93,2.596]
[1735549698500,8.25721949,192.96,192.88,11.33971949]
[1735549698710,8.25721949,192.94,192.88,6.0425]
[1735549699193,8.25721949,192.9,192.79,56.21947337]
[1735549699408,8.25721949,192.9,192.85,53.57851231]
[1735549699591,8.25721949,192.88,192.82,4.6948]
[1735549699789,8.25721949,192.88,192.82,7.6548]
[1735549700495,8.25721949,192.88,192.82,4.6948]
[1735549700799,8.25721949,192.86,192.82,1.6186]
[1735549703399,8.25721949,192.86,192.83,2.5974]
[1735549708804,8.25721949,192.88,192.85,2.5972]
[1735549709000,8.25721949,192.88,192.81,8.25721949]
[1735549709200,8.25721949,192.9,192.83,8.25721949]
[1735549709505,8.25721949,192.9,192.85,2.5972]
[1735549710103,8.25721949,192.9,192.87,2.5969]
[1735549712503,8.25721949,192.92,192.85,8.25721949]
[1735549714409,8.25721949,192.92,192.89,2.5966]
[1735549715207,8.25721949,192.92,192.87,2.5968]
[1735549721912,8.25721949,192.9,192.83,8.25721949]
[1735549722511,8.25721949,192.9,192.85,2.5972]
[1735549725812,8.25721949,192.9,192.84,2.5972]
[1735549726516,8.25721949,192.88,192.82,2.96]
[1735549726820,8.25721949,192.88,192.8,8.25721949]
[1735549728722,8.25721949,192.88,192.83,2.5974]
[1735549730322,8.25721949,192.88,192.8,8.25721949]
[1735549730523,8.25721949,192.88,192.81,2.5976]
[1735549731827,8.25721949,192.88,192.8,8.25721949]
[1735549732026,8.25721949,192.88,192.82,2.5976]
[1735549732421,8.25721949,192.88,192.85,2.5972]
[1735549732628,8.25721949,192.9,192.85,2.5972]
[1735549736530,8.25721949,192.9,192.84,10.85451949]
[1735549736731,8.25721949,192.9,192.84,2.5973]
[1735549739636,31.65276444,192.93,192.82,8.25721949]
[1735549739842,8.25721949,192.92,192.84,8.25721949]
[1735549740027,8.25721949,192.92,192.86,8.25721949]
[1735549740537,15.42113152,192.92,192.86,8.25721949]
[1735549740738,15.42113152,192.92,192.88,2.5967]
[1735549740940,15.42113152,192.92,192.84,11.21721949]
[1735549741438,8.25721949,192.92,192.84,11.21721949]
[1735549741940,8.25721949,192.9,192.84,11.21721949]
[1735549742141,8.25721949,192.9,192.84,2.96]
[1735549742534,8.25721949,192.88,192.84,2.96]
[1735549743436,8.25721949,192.88,192.84,5.5573]
[1735549743637,8.25721949,192.9,192.84,11.21721949]
[1735549743841,7.16391203,192.91,192.84,11.21721949]
[1735549744041,7.16391203,192.93,192.86,8.25721949]
[1735549744441,7.16391203,192.93,192.88,2.5968]
[1735549745147,7.16391203,192.93,192.88,8.25721949]
[1735549745348,56.4940981,192.95,192.89,2.96]
[1735549745349,15.42113152,192.95,192.89,2.96]
[1735549745746,7.16391203,192.95,192.9,8.25721949]
[1735549746454,15.42113152,192.97,192.91,2.5963]
[1735549746653,15.42113152,192.97,192.9,8.25721949]
[1735549746945,8.25721949,192.95,192.88,8.25721949]
[1735549747170,8.25721949,192.95,192.88,13.81401949]
[1735549747552,8.25721949,192.95,192.9,2.5965]
[1735549748250,8.25721949,192.95,192.88,13.81391949]
[1735549749251,8.25721949,192.95,192.88,11.21721949]
[1735549749452,8.25721949,192.95,192.89,2.5966]
[1735549750046,8.25721949,192.95,192.9,2.5964]
[1735549752057,8.25721949,192.95,192.89,2.5966]
[1735549754059,8.25721949,192.95,192.88,11.21721949]
[1735549755465,8.25721949,192.95,192.9,2.5965]
[1735549755758,8.25721949,192.95,192.88,11.21721949]
[1735549756160,8.25721949,192.95,192.9,2.5965]
[1735549757762,8.25721949,192.93,192.86,1.608]
[1735549757964,8.25721949,192.93,192.86,12.82521949]
[1735549758261,8.25721949,192.93,192.87,2.5968]
[1735549758576,8.25721949,192.89,192.83,11.21721949]
[1735549758959,8.25721949,192.89,192.77,4.7333]
[1735549759260,8.25721949,192.87,192.81,8.25721949]
[1735549759454,8.25721949,192.87,192.83,2.5974]
[1735549761659,8.25721949,192.89,192.84,2.5973]
[1735549762065,8.25721949,192.89,192.83,8.25721949]
[1735549762864,8.25721949,192.89,192.86,2.597]
[1735549763368,8.25721949,192.89,192.83,8.25721949]
[1735549764460,8.25721949,192.89,192.84,2.5972]
[1735549765361,8.25721949,192.89,192.83,8.25721949]
[1735549765564,8.25721949,192.89,192.85,2.5972]
[1735549766172,8.25721949,192.89,192.83,8.25721949]
[1735549766366,8.25721949,192.89,192.83,10.85461949]
[1735549767464,8.25721949,192.89,192.84,2.5973]
[1735549768171,8.25721949,192.89,192.83,8.25721949]
[1735549768363,8.25721949,192.89,192.83,10.85461949]
[1735549768961,8.25721949,192.89,192.85,2.5972]
[1735549770065,8.25721949,192.89,192.84,2.5973]
[1735549771371,10.15121203,192.94,192.85,8.25721949]
[1735549771566,8.25721949,192.93,192.85,8.25721949]
[1735549771765,8.25721949,192.93,192.87,2.5969]
[1735549772067,8.25721949,192.93,192.85,8.25721949]
[1735549772468,8.25721949,192.91,192.86,2.597]
[1735549772771,8.25721949,192.91,192.83,8.25721949]
[1735549773568,8.25721949,192.91,192.84,2.5972]
[1735549774572,8.25721949,192.91,192.87,2.5969]
[1735549776978,8.25721949,192.91,192.83,8.25721949]
[1735549778666,8.25721949,192.91,192.83,10.85451949]
[1735549779076,8.25721949,192.89,192.83,10.85451949]
[1735549783378,8.25721949,192.91,192.85,2.5971]
[1735549783579,8.25721949,192.91,192.83,11.21721949]
[1735549783979,8.25721949,192.91,192.86,2.5969]
[1735549784382,8.25721949,192.91,192.83,11.21721949]
[1735549785284,8.25721949,192.91,192.85,2.5971]
[1735549785986,8.25721949,192.91,192.86,2.597]
[1735549787186,8.25721949,192.91,192.87,2.5969]
[1735549787382,8.25721949,192.93,192.87,2.5969]
[1735549787689,8.25721949,192.93,192.85,8.25721949]
[1735549787986,8.25721949,192.93,192.88,2.5967]
[1735549788988,8.25721949,192.93,192.85,8.25721949]
[1735549789297,8.25721949,192.93,192.87,2.5969]
[1735549789988,8.25721949,192.91,192.85,2.5971]
[1735549790191,8.25721949,192.91,192.83,11.21721949]
[1735549790599,8.25721949,192.91,192.85,2.5972]
[1735549795721,8.25721949,192.93,192.88,2.5967]
[1735549796202,8.25721949,192.93,192.85,8.25721949]
[1735549796406,8.25721949,192.93,192.87,2.5969]
[1735549797303,8.25721949,192.91,192.85,2.5971]
[1735549799599,8.25721949,192.89,192.83,2.5974]
[1735549800197,8.25721949,192.89,192.82,2.5975]
[1735549800800,8.25721949,192.85,192.78,1.588]
[1735549801015,8.25721949,192.85,192.78,9.84521949]
[1735549802408,8.25721949,192.85,192.81,2.5977]
[1735549802606,8.25721949,192.85,192.78,9.84521949]
[1735549802806,8.25721949,192.85,192.78,12.80521949]
[1735549803007,8.25721949,192.85,192.79,2.5979]
[1735549803909,8.25721949,192.85,192.78,12.80521949]
[1735549804209,8.25721949,192.85,192.8,2.5977]
[1735549805315,8.25721949,192.85,192.79,2.598]
[1735549805806,8.25721949,192.85,192.78,11.21721949]
[1735549806107,8.25721949,192.83,192.78,5.5581]
[1735549806308,8.25721949,192.81,192.75,2.96]
[1735549806507,8.25721949,192.81,192.75,5.5584]
[1735549806709,8.25721949,192.81,192.75,2.96]
[1735549806911,8.25721949,192.83,192.76,8.25721949]
[1735549808210,8.25721949,192.83,192.78,2.5981]
[1735549808406,8.25721949,192.83,192.76,8.25721949]
[1735549809411,8.25721949,192.83,192.77,2.5982]
[1735549809611,8.25721949,192.83,192.76,8.25721949]
[1735549810007,8.25721949,192.83,192.76,10.85561949]
[1735549810604,8.25721949,192.83,192.79,2.5979]
[1735549811809,8.25721949,192.84,192.79,2.598]
[1735549813417,8.25721949,192.84,192.76,8.25721949]
[1735549813714,8.25721949,192.84,192.8,2.5978]
[1735549815213,8.25721949,192.86,192.82,2.5975]
[1735549816218,8.25721949,192.84,192.78,8.25721949]
[1735549817217,8.25721949,192.86,192.78,8.25721949]
[1735549817818,8.25721949,192.86,192.81,2.5976]
[1735549818518,8.25721949,192.86,192.82,2.5975]
[1735549818716,3.2136,192.91,192.8,8.25721949]
[1735549818914,8.25721949,192.87,192.8,11.21721949]
[1735549819318,8.25721949,192.87,192.83,2.5973]
[1735549821223,8.25721949,192.87,192.81,2.5976]
[1735549821421,8.25721949,192.87,192.8,11.21721949]
[1735549821722,8.25721949,192.87,192.8,2.96]
[1735549822119,8.25721949,192.85,192.77,1.4614]
[1735549822321,8.25721949,192.83,192.77,1.4614]
[1735549822917,8.25721949,192.83,192.78,2.5981]
[1735549824019,8.25721949,192.81,192.77,2.5982]
[1735549827721,2.96,192.87,192.77,2.5982]
[1735549827926,8.25721949,192.82,192.78,2.5981]
[1735549828125,8.25721949,192.82,192.75,11.21721949]
[1735549828327,2.96,192.87,192.75,11.21721949]
[1735549828628,8.25721949,192.83,192.77,2.5982]
[1735549828827,8.25721949,192.81,192.75,2.96]
[1735549829126,8.25721949,192.79,192.72,9.74581949]
[1735549829327,8.25721949,192.79,192.74,2.5986]
[1735549830126,8.25721949,192.79,192.72,9.74581949]
[1735549830331,8.25721949,192.79,192.74,8.25721949]
[1735549831129,8.25721949,192.81,192.74,8.25721949]
[1735549832530,8.25721949,192.83,192.76,8.25721949]
[1735549832830,8.25721949,192.83,192.76,11.21721949]
[1735549833424,8.25721949,192.83,192.79,2.5979]
[1735549833631,8.25721949,192.85,192.78,8.25721949]
[1735549834026,8.25721949,192.85,192.81,2.5976]
[1735549834228,28.69276444,192.9,192.8,8.25721949]
[1735549834430,8.25721949,192.88,192.8,8.25721949]
[1735549834724,8.25721949,192.88,192.81,2.96]
[1735549835425,8.25721949,192.88,192.84,2.5972]
[1735549836231,8.25721949,192.86,192.82,2.5976]
[1735549836425,8.25721949,192.86,192.81,2.96]
[1735549836426,8.25721949,192.84,192.81,2.96]
[1735549836630,8.25721949,192.82,192.76,8.25721949]
[1735549837033,8.25721949,192.82,192.75,2.96]
[1735549837541,8.25721949,192.82,192.78,2.598]
[1735549838727,8.25721949,192.82,192.77,2.5982]
[1735549838924,8.25721949,192.8,192.75,2.96]
[1735549839330,8.25721949,192.8,192.74,8.25721949]
[1735549840529,8.25721949,192.8,192.75,2.5985]
[1735549842834,8.25721949,192.78,192.75,2.5985]
[1735549845936,1.5177,192.84,192.75,2.5985]
[1735549846238,8.25721949,192.8,192.75,2.5985]
[1735549847840,8.25721949,192.78,192.71,2.96]
[1735549848042,8.25721949,192.76,192.71,2.96]
[1735549848636,8.25721949,192.76,192.72,2.5988]
[1735549848937,8.25721949,192.74,192.68,8.25721949]
[1735549849134,8.25721949,192.74,192.69,2.5993]
[1735549849335,2.96,192.82,192.67,2.96]
[1735549849542,8.25721949,192.75,192.68,8.25721949]
[1735549849738,8.25721949,192.75,192.7,2.5992]
[1735549851139,8.25721949,192.75,192.71,2.599]
[1735549851340,8.25721949,192.75,192.68,8.25721949]
[1735549852336,8.25721949,192.75,192.72,2.5989]
[1735549855343,8.25721949,192.75,192.74,2.5987]
[1735549855952,8.25721949,192.75,192.72,2.5988]
[1735549856150,8.25721949,192.75,192.68,8.25721949]
[1735549856451,8.25721949,192.75,192.74,2.5987]
[1735549856647,8.25721949,192.77,192.7,8.25721949]
[1735549857648,8.25721949,192.75,192.7,8.25721949]
[1735549857852,8.25721949,192.75,192.73,2.5987]
[1735549859752,8.25721949,192.77,192.7,8.25721949]
[1735549860556,8.25721949,192.77,192.75,2.5984]
[1735549863662,3.1009,192.84,192.72,11.21721949]
[1735549863956,8.25721949,192.84,192.78,8.25721949]
[1735549864958,8.25721949,192.86,192.8,8.25721949]
[1735549865467,8.25721949,192.86,192.84,2.5972]
[1735549865959,3.0459,192.9,192.84,2.5972]
[1735549866257,8.25721949,192.87,192.84,2.5972]
[1735549868860,8.25721949,192.87,192.8,8.25721949]
[1735549869165,8.25721949,192.87,192.85,2.5972]
[1735549869361,8.25721949,192.87,192.8,8.25721949]
[1735549870568,8.25721949,192.87,192.85,2.5972]
[1735549870758,2.96,192.92,192.85,2.5972]
[1735549870959,8.25721949,192.88,192.85,2.5972]
[1735549872062,8.25721949,192.88,192.86,2.597]
[1735549873386,28.69276444,192.94,192.86,2.597]
[1735549873670,8.25721949,192.92,192.89,2.5965]
[1735549874566,8.25721949,192.92,192.84,8.25721949]
[1735549874762,8.25721949,192.92,192.88,2.5968]
[1735549877763,8.25721949,192.9,192.84,8.25721949]
[1735549878064,8.25721949,192.9,192.87,2.5969]
[1735549878366,2.65496895,192.95,192.87,2.5969]
[1735549878670,8.25721949,192.91,192.88,2.5967]
[1735549878967,8.25721949,192.91,192.84,8.25721949]
[1735549879361,8.25721949,192.91,192.89,2.5966]
[1735549879562,8.25721949,192.93,192.89,2.5966]
[1735549880861,56.30165248,192.97,192.88,8.25721949]
[1735549881066,8.25721949,192.97,192.9,8.25721949]